[Event "Late-Titled-Tuesday-Blitz-April-23-2024"]
[Site "Chess.com"]
[Date "2024.04.23"]
[Round "11"]
[White "CarlosjPineror"]
[Black "Denmark2015"]
[Result "1-0"]
[WhiteElo "2768"]
[BlackElo "2614"]
[TimeControl "180+1"]
[EndTime "16:07:24 PDT"]
[Termination "CarlosjPineror won by resignation"]

1. e4 {[%clk 0:03:00.9]} 1... e6 {[%clk 0:02:59.5]} 2. d3 {[%clk 0:03:00.9]}
2... d5 {[%clk 0:02:59.6]} 3. Nd2 {[%clk 0:03:01.8]} 3... Nf6 {[%clk 0:02:59.5]}
4. Ngf3 {[%clk 0:03:01.8]} 4... b6 {[%clk 0:02:59.3]} 5. Qe2 {[%clk 0:02:59.2]}
5... Be7 {[%clk 0:02:59]} 6. e5 {[%clk 0:02:58.8]} 6... Nfd7 {[%clk 0:02:58.7]}
7. h4 {[%clk 0:02:59.6]} 7... h6 {[%clk 0:02:58.2]} 8. h5 {[%clk 0:02:59.1]}
8... Bb7 {[%clk 0:02:56.5]} 9. g3 {[%clk 0:02:59.1]} 9... c5 {[%clk 0:02:56.4]}
10. Bg2 {[%clk 0:02:58.9]} 10... Nc6 {[%clk 0:02:56.7]} 11. c3 {[%clk
0:02:59.5]} 11... Qc7 {[%clk 0:02:55.7]} 12. d4 {[%clk 0:02:59.8]} 12... cxd4
{[%clk 0:02:54.1]} 13. cxd4 {[%clk 0:03:00.7]} 13... Nb4 {[%clk 0:02:54.3]} 14.
O-O {[%clk 0:02:31.3]} 14... Ba6 {[%clk 0:02:53]} 15. Qd1 {[%clk 0:02:31.8]}
15... Qc2 {[%clk 0:02:37.4]} 16. Qxc2 {[%clk 0:02:21.7]} 16... Nxc2 {[%clk
0:02:37.3]} 17. Rb1 {[%clk 0:02:22.6]} 17... Bxf1 {[%clk 0:02:34.4]} 18. Bxf1
{[%clk 0:02:22.2]} 18... Nb4 {[%clk 0:02:34.2]} 19. a3 {[%clk 0:02:20.1]} 19...
Nc6 {[%clk 0:02:34]} 20. b4 {[%clk 0:02:17]} 20... f6 {[%clk 0:02:25.1]} 21. Bb2
{[%clk 0:02:12.2]} 21... Kf7 {[%clk 0:02:24.6]} 22. Rc1 {[%clk 0:02:04.6]} 22...
Ndb8 {[%clk 0:01:53.8]} 23. Bd3 {[%clk 0:02:00.9]} 23... a6 {[%clk 0:01:48.8]}
24. Bg6+ {[%clk 0:01:57.5]} 24... Kf8 {[%clk 0:01:43.6]} 25. g4 {[%clk
0:01:58.1]} 25... Bd8 {[%clk 0:01:40.5]} 26. Re1 {[%clk 0:01:54]} 26... fxe5
{[%clk 0:01:33.3]} 27. Nxe5 {[%clk 0:01:48.5]} 27... Bf6 {[%clk 0:01:29.3]} 28.
Nf7 {[%clk 0:01:33]} 28... Rg8 {[%clk 0:01:25.9]} 29. Nf3 {[%clk 0:01:33.5]}
29... Ke7 {[%clk 0:01:22]} 30. g5 {[%clk 0:01:24.9]} 30... hxg5 {[%clk
0:01:18.7]} 31. N3xg5 {[%clk 0:01:24.7]} 31... Nxd4 {[%clk 0:01:02.1]} 32. Bxd4
{[%clk 0:01:19.3]} 32... Bxd4 {[%clk 0:01:03]} 33. Nxe6 {[%clk 0:01:15]} 33...
Bc3 {[%clk 0:00:51.2]} 34. Re2 {[%clk 0:01:14.3]} 34... Kd7 {[%clk 0:00:47.5]}
35. Nf4 {[%clk 0:01:11.3]} 35... Re8 {[%clk 0:00:39.4]} 36. Rxe8 {[%clk
0:01:10.5]} 36... Kxe8 {[%clk 0:00:39.5]} 37. Nxd5 {[%clk 0:01:11.4]} 37... Bd4
{[%clk 0:00:34.9]} 38. Nc7+ {[%clk 0:01:11.4]} 38... Kd7 {[%clk 0:00:34.7]} 39.
Nxa8 {[%clk 0:01:12.3]} 39... Kc6 {[%clk 0:00:33.2]} 40. Be4+ {[%clk 0:01:11.4]}
40... Kd7 {[%clk 0:00:31.8]} 41. Ng5 {[%clk 0:01:12.3]} 41... Nc6 {[%clk
0:00:28.3]} 42. Bxc6+ {[%clk 0:01:11.6]} 42... Kxc6 {[%clk 0:00:28.4]} 43. Ne6
{[%clk 0:01:11.9]} 43... Be5 {[%clk 0:00:25.8]} 44. Nac7 {[%clk 0:01:12.6]}
44... Bxc7 {[%clk 0:00:24.6]} 45. Nxg7 {[%clk 0:01:13]} 45... Kd5 {[%clk
0:00:21.5]} 46. Kg2 {[%clk 0:01:07.4]} 46... Be5 {[%clk 0:00:21.1]} 47. h6
{[%clk 0:01:05.2]} 47... Kc4 {[%clk 0:00:20.6]} 48. Kf3 {[%clk 0:01:05.4]} 48...
Kb3 {[%clk 0:00:20.2]} 49. Ke4 {[%clk 0:01:02.2]} 49... Bb2 {[%clk 0:00:17]} 50.
f4 {[%clk 0:00:54.8]} 50... Kxa3 {[%clk 0:00:17.1]} 51. f5 {[%clk 0:00:55.4]}
51... Kxb4 {[%clk 0:00:17]} 52. Nh5 {[%clk 0:00:56]} 52... Kc5 {[%clk
0:00:13.9]} 53. f6 {[%clk 0:00:54.1]} 53... Kd6 {[%clk 0:00:13.8]} 54. h7 {[%clk
0:00:54.6]} 1-0

[Event "Late-Titled-Tuesday-Blitz-April-23-2024"]
[Site "Chess.com"]
[Date "2024.04.23"]
[Round "11"]
[White "MaxLeto"]
[Black "JG-17"]
[Result "0-1"]
[WhiteElo "2429"]
[BlackElo "2556"]
[TimeControl "180+1"]
[EndTime "16:07:24 PDT"]
[Termination "JG-17 won by checkmate"]

1. g4 {[%clk 0:03:00.9]} 1... e5 {[%clk 0:02:46]} 2. Bg2 {[%clk 0:03:01.1]} 2...
d5 {[%clk 0:02:46]} 3. h3 {[%clk 0:03:00.5]} 3... Nc6 {[%clk 0:02:44.8]} 4. c3
{[%clk 0:02:59.4]} 4... Be6 {[%clk 0:02:42.4]} 5. d4 {[%clk 0:02:59.2]} 5... e4
{[%clk 0:02:42]} 6. Bf4 {[%clk 0:02:56.4]} 6... Bd6 {[%clk 0:02:40.8]} 7. Qd2
{[%clk 0:02:53.3]} 7... h5 {[%clk 0:02:40.4]} 8. g5 {[%clk 0:02:52.7]} 8... Nge7
{[%clk 0:02:39.3]} 9. Bxd6 {[%clk 0:02:46]} 9... Qxd6 {[%clk 0:02:39.3]} 10. h4
{[%clk 0:02:37.1]} 10... Ng6 {[%clk 0:02:38.8]} 11. e3 {[%clk 0:02:35.4]} 11...
O-O-O {[%clk 0:02:38.5]} 12. Ne2 {[%clk 0:02:32.3]} 12... f6 {[%clk 0:02:37.4]}
13. gxf6 {[%clk 0:02:19.4]} 13... gxf6 {[%clk 0:02:37.3]} 14. c4 {[%clk
0:02:12.3]} 14... dxc4 {[%clk 0:02:20.8]} 15. Bxe4 {[%clk 0:02:09.9]} 15... Bd5
{[%clk 0:02:21.1]} 16. Nbc3 {[%clk 0:02:07.3]} 16... Bxe4 {[%clk 0:02:18.7]} 17.
Nxe4 {[%clk 0:02:08.2]} 17... Qd5 {[%clk 0:02:18.2]} 18. N2c3 {[%clk 0:02:07.5]}
18... Qa5 {[%clk 0:02:14.1]} 19. O-O-O {[%clk 0:01:50.7]} 19... Nb4 {[%clk
0:02:11.7]} 20. Kb1 {[%clk 0:01:47.7]} 20... Nd3 {[%clk 0:02:07.3]} 21. Nxf6
{[%clk 0:01:10.3]} 21... Qf5 {[%clk 0:02:04.7]} 22. Nfe4 {[%clk 0:01:09]} 22...
Rhe8 {[%clk 0:02:04.7]} 23. f3 {[%clk 0:00:52.5]} 23... Qxf3 {[%clk 0:02:02.6]}
24. Rdf1 {[%clk 0:00:49.2]} 24... Qg4 {[%clk 0:01:53.4]} 25. Nf6 {[%clk
0:00:46.4]} 25... Qe6 {[%clk 0:01:48.1]} 26. Nxe8 {[%clk 0:00:41.3]} 26... Rxe8
{[%clk 0:01:49]} 27. e4 {[%clk 0:00:39.8]} 27... Rd8 {[%clk 0:01:44]} 28. d5
{[%clk 0:00:27]} 28... Qb6 {[%clk 0:01:44.7]} 29. Rf5 {[%clk 0:00:20.7]} 29...
Nge5 {[%clk 0:01:44]} 30. Rxh5 {[%clk 0:00:19.6]} 30... Nf3 {[%clk 0:01:44]} 31.
Qg2 {[%clk 0:00:15.3]} 31... a5 {[%clk 0:01:27.3]} 32. a4 {[%clk 0:00:08.1]}
32... Nd4 {[%clk 0:01:24.1]} 33. Rg5 {[%clk 0:00:06]} 33... Rf8 {[%clk
0:01:13.5]} 34. Rg8 {[%clk 0:00:03.5]} 34... Rxg8 {[%clk 0:01:10.6]} 35. Qxg8+
{[%clk 0:00:04.4]} 35... Kd7 {[%clk 0:01:11.4]} 36. Qg2 {[%clk 0:00:03.8]} 36...
Qb3 {[%clk 0:01:04.2]} 37. h5 {[%clk 0:00:03.8]} 37... Nb4 {[%clk 0:00:45.7]}
38. h6 {[%clk 0:00:03.7]} 38... Ndc2 {[%clk 0:00:41.7]} 39. h7 {[%clk
0:00:03.2]} 39... Na3+ {[%clk 0:00:42.4]} 40. Kc1 {[%clk 0:00:03.3]} 40... Nd3+
{[%clk 0:00:39.5]} 41. Kd2 {[%clk 0:00:03.8]} 41... Qxb2+ {[%clk 0:00:39.6]} 42.
Ke3 {[%clk 0:00:03.7]} 42... Qxg2 {[%clk 0:00:39.2]} 43. h8=Q {[%clk 0:00:03.8]}
43... Nc2# {[%clk 0:00:38.6]} 0-1

[Event "Late-Titled-Tuesday-Blitz-April-23-2024"]
[Site "Chess.com"]
[Date "2024.04.23"]
[Round "11"]
[White "Eloist"]
[Black "kai_nov"]
[Result "1-0"]
[WhiteElo "2460"]
[BlackElo "2279"]
[TimeControl "180+1"]
[EndTime "16:07:27 PDT"]
[Termination "Eloist won on time"]

1. e4 {[%clk 0:02:59.4]} 1... c5 {[%clk 0:02:59.7]} 2. Nf3 {[%clk 0:02:59]} 2...
Nc6 {[%clk 0:02:59.3]} 3. Bb5 {[%clk 0:02:58.8]} 3... e6 {[%clk 0:02:58.1]} 4.
Bxc6 {[%clk 0:02:58.8]} 4... bxc6 {[%clk 0:02:59]} 5. d3 {[%clk 0:02:58.7]} 5...
Ne7 {[%clk 0:02:59.4]} 6. Qe2 {[%clk 0:02:57.6]} 6... Ng6 {[%clk 0:02:58.2]} 7.
h4 {[%clk 0:02:53.4]} 7... h5 {[%clk 0:02:56.8]} 8. e5 {[%clk 0:02:52.5]} 8...
Be7 {[%clk 0:02:36.5]} 9. Qe4 {[%clk 0:02:50.9]} 9... Rb8 {[%clk 0:02:28.8]} 10.
Na3 {[%clk 0:02:27]} 10... O-O {[%clk 0:02:18.3]} 11. Nc4 {[%clk 0:02:24.5]}
11... f5 {[%clk 0:02:00.6]} 12. exf6 {[%clk 0:02:16.2]} 12... Rxf6 {[%clk
0:01:59.4]} 13. Nce5 {[%clk 0:01:51.7]} 13... d5 {[%clk 0:01:49.4]} 14. Qe2
{[%clk 0:01:45.2]} 14... Qc7 {[%clk 0:01:33.5]} 15. Bg5 {[%clk 0:01:31.8]} 15...
Nxe5 {[%clk 0:01:33.5]} 16. Nxe5 {[%clk 0:01:28.8]} 16... Rf5 {[%clk 0:01:16.2]}
17. f4 {[%clk 0:01:23.3]} 17... Rxb2 {[%clk 0:01:02.7]} 18. Qxh5 {[%clk
0:00:42]} 18... Qa5+ {[%clk 0:00:38]} 19. Kd1 {[%clk 0:00:25.7]} 19... Qc3
{[%clk 0:00:33]} 20. Rc1 {[%clk 0:00:19.4]} 20... Rxe5 {[%clk 0:00:14.5]} 21.
fxe5 {[%clk 0:00:17.3]} 21... Qxe5 {[%clk 0:00:10.9]} 22. Re1 {[%clk 0:00:15.1]}
22... Qf5 {[%clk 0:00:07.4]} 23. Qe8+ {[%clk 0:00:13.5]} 23... Bf8 {[%clk
0:00:06]} 24. Be7 {[%clk 0:00:10.7]} 24... Qg4+ {[%clk 0:00:04.4]} 25. Re2
{[%clk 0:00:10.9]} 25... Qf5 {[%clk 0:00:02.8]} 26. Qxc8 {[%clk 0:00:09.8]}
26... Kh7 {[%clk 0:00:02.8]} 27. Qxf8 {[%clk 0:00:08.9]} 27... Qg4 {[%clk
0:00:01.1]} 28. Bf6 {[%clk 0:00:08]} 1-0

[Event "Late-Titled-Tuesday-Blitz-April-23-2024"]
[Site "Chess.com"]
[Date "2024.04.23"]
[Round "11"]
[White "Gravity_Chess"]
[Black "MagnusCarlsen"]
[Result "0-1"]
[WhiteElo "2896"]
[BlackElo "3231"]
[TimeControl "180+1"]
[EndTime "16:07:32 PDT"]
[Termination "MagnusCarlsen won on time"]

1. Nf3 {[%clk 0:03:00.9]} 1... Na6 {[%clk 0:02:59.8]} 2. d4 {[%clk 0:02:59]}
2... Nf6 {[%clk 0:02:59.4]} 3. c4 {[%clk 0:02:47.2]} 3... g6 {[%clk 0:02:58.4]}
4. Nc3 {[%clk 0:02:44.7]} 4... Bg7 {[%clk 0:02:59.1]} 5. g3 {[%clk 0:02:45.1]}
5... O-O {[%clk 0:02:58.3]} 6. Bg2 {[%clk 0:02:45.8]} 6... d6 {[%clk 0:02:53.9]}
7. O-O {[%clk 0:02:44.9]} 7... c6 {[%clk 0:02:53.8]} 8. h3 {[%clk 0:02:29]} 8...
Nc7 {[%clk 0:02:51.2]} 9. Qc2 {[%clk 0:02:16.8]} 9... b5 {[%clk 0:02:50.9]} 10.
b3 {[%clk 0:01:49.4]} 10... b4 {[%clk 0:02:47.7]} 11. Ne4 {[%clk 0:01:38.2]}
11... Nxe4 {[%clk 0:02:38.5]} 12. Qxe4 {[%clk 0:01:39.1]} 12... c5 {[%clk
0:02:37.2]} 13. Be3 {[%clk 0:01:27.5]} 13... d5 {[%clk 0:02:32.1]} 14. cxd5
{[%clk 0:01:17.8]} 14... Nxd5 {[%clk 0:02:29.7]} 15. Ne5 {[%clk 0:00:59.9]}
15... Be6 {[%clk 0:02:23.2]} 16. Rac1 {[%clk 0:00:45.5]} 16... Nc3 {[%clk
0:02:18.9]} 17. Qxa8 {[%clk 0:00:30.8]} 17... Qxa8 {[%clk 0:02:15.1]} 18. Bxa8
{[%clk 0:00:31.4]} 18... Rxa8 {[%clk 0:02:14.5]} 19. Rfe1 {[%clk 0:00:24.8]}
19... a5 {[%clk 0:02:00.6]} 20. Nc6 {[%clk 0:00:24.8]} 20... Kf8 {[%clk
0:01:48.7]} 21. Rxc3 {[%clk 0:00:18.3]} 21... bxc3 {[%clk 0:01:48.3]} 22. dxc5
{[%clk 0:00:19.2]} 22... a4 {[%clk 0:01:45.4]} 23. Nd4 {[%clk 0:00:15.1]} 23...
Bxd4 {[%clk 0:01:31.7]} 24. Bxd4 {[%clk 0:00:15.4]} 24... c2 {[%clk 0:01:29]}
25. Rc1 {[%clk 0:00:11.1]} 25... axb3 {[%clk 0:01:29]} 26. axb3 {[%clk 0:00:12]}
26... Bxb3 {[%clk 0:01:29.5]} 27. f3 {[%clk 0:00:12.5]} 27... Rd8 {[%clk
0:01:28.5]} 28. Be3 {[%clk 0:00:11.8]} 28... Rd1+ {[%clk 0:01:28.2]} 29. Kf2
{[%clk 0:00:12.3]} 29... Ke8 {[%clk 0:01:28.7]} 30. h4 {[%clk 0:00:12.6]} 30...
Kd7 {[%clk 0:01:28.6]} 31. g4 {[%clk 0:00:08.4]} 31... h5 {[%clk 0:01:27.7]} 32.
gxh5 {[%clk 0:00:08.1]} 32... gxh5 {[%clk 0:01:28.6]} 33. Kg2 {[%clk 0:00:08.6]}
33... f5 {[%clk 0:01:23.8]} 34. f4 {[%clk 0:00:07.3]} 34... Kc6 {[%clk
0:01:23.6]} 35. Kf2 {[%clk 0:00:07.8]} 35... Kb5 {[%clk 0:01:23.3]} 36. Kg2
{[%clk 0:00:02.6]} 36... Bd5+ {[%clk 0:01:23.1]} 37. Kf2 {[%clk 0:00:02.7]}
37... Be4 {[%clk 0:01:24]} 38. Kg3 {[%clk 0:00:01.7]} 38... Kc4 {[%clk
0:01:17.6]} 39. c6 {[%clk 0:00:01.7]} 39... Rd6 {[%clk 0:01:17]} 40. c7 {[%clk
0:00:00.9]} 40... Rc6 {[%clk 0:01:17.5]} 41. Ra1 {[%clk 0:00:00.9]} 41... Rxc7
{[%clk 0:01:15.9]} 42. Kf2 {[%clk 0:00:01.5]} 42... Kb3 {[%clk 0:01:15.7]} 43.
Bc1 {[%clk 0:00:02.1]} 43... Rd7 {[%clk 0:01:15.7]} 44. Ra3+ {[%clk 0:00:02.5]}
44... Kb4 {[%clk 0:01:15.8]} 45. Ra1 {[%clk 0:00:01.9]} 45... Rd1 {[%clk
0:01:16.7]} 46. Ke3 {[%clk 0:00:02]} 46... e6 {[%clk 0:01:14.1]} 47. Bd2+ {[%clk
0:00:02.2]} 47... Kb3 {[%clk 0:01:12.1]} 48. Bc1 {[%clk 0:00:02.6]} 48... Rh1
{[%clk 0:01:10.8]} 49. Ra3+ {[%clk 0:00:03]} 49... Kb4 {[%clk 0:01:10.8]} 50.
Ra1 {[%clk 0:00:03.3]} 50... Rxh4 {[%clk 0:01:10.5]} 51. Kd4 {[%clk 0:00:03.3]}
51... Kb5 {[%clk 0:01:08.8]} 52. Ke5 {[%clk 0:00:01.7]} 52... Rh1 {[%clk
0:01:08.6]} 0-1

[Event "Late-Titled-Tuesday-Blitz-April-23-2024"]
[Site "Chess.com"]
[Date "2024.04.23"]
[Round "11"]
[White "super_emi_26"]
[Black "GMKrikor"]
[Result "1-0"]
[WhiteElo "2723"]
[BlackElo "2867"]
[TimeControl "180+1"]
[EndTime "16:07:39 PDT"]
[Termination "super_emi_26 won on time"]

1. b3 {[%clk 0:02:55.2]} 1... Nf6 {[%clk 0:02:59]} 2. Bb2 {[%clk 0:02:55]} 2...
d5 {[%clk 0:02:59.7]} 3. e3 {[%clk 0:02:55.3]} 3... e6 {[%clk 0:02:52.1]} 4. Nf3
{[%clk 0:02:55.7]} 4... Bd6 {[%clk 0:02:52.1]} 5. c4 {[%clk 0:02:53.7]} 5... O-O
{[%clk 0:02:51.9]} 6. Be2 {[%clk 0:02:54.2]} 6... Re8 {[%clk 0:02:47.8]} 7. d4
{[%clk 0:02:53.3]} 7... b6 {[%clk 0:02:47.9]} 8. O-O {[%clk 0:02:53.3]} 8... Bb7
{[%clk 0:02:48.1]} 9. Nc3 {[%clk 0:02:53.7]} 9... Nbd7 {[%clk 0:02:47.6]} 10.
Rc1 {[%clk 0:02:53.4]} 10... a6 {[%clk 0:02:47.8]} 11. Qc2 {[%clk 0:02:53]}
11... dxc4 {[%clk 0:02:38]} 12. bxc4 {[%clk 0:02:49.6]} 12... c5 {[%clk
0:02:38.3]} 13. Rfd1 {[%clk 0:02:49]} 13... Qc7 {[%clk 0:02:37.3]} 14. d5 {[%clk
0:02:43.4]} 14... exd5 {[%clk 0:02:34.2]} 15. Nxd5 {[%clk 0:02:43.7]} 15... Bxd5
{[%clk 0:02:21.4]} 16. cxd5 {[%clk 0:02:44.6]} 16... b5 {[%clk 0:02:22]} 17. a4
{[%clk 0:02:44.6]} 17... c4 {[%clk 0:02:16.6]} 18. g3 {[%clk 0:02:40.6]} 18...
Qb6 {[%clk 0:01:51.8]} 19. Nd4 {[%clk 0:02:38.5]} 19... Be5 {[%clk 0:01:39.7]}
20. a5 {[%clk 0:02:28.5]} 20... Qxa5 {[%clk 0:01:14.7]} 21. Nc6 {[%clk
0:02:28.4]} 21... Qc7 {[%clk 0:01:14.9]} 22. Nxe5 {[%clk 0:02:27.5]} 22... Nxe5
{[%clk 0:01:15]} 23. e4 {[%clk 0:02:09.8]} 23... Ned7 {[%clk 0:01:05.5]} 24. Bf3
{[%clk 0:02:01.5]} 24... Rac8 {[%clk 0:00:48.4]} 25. Bg2 {[%clk 0:01:42.6]}
25... b4 {[%clk 0:00:48.5]} 26. d6 {[%clk 0:01:43.2]} 26... Qc5 {[%clk
0:00:32.9]} 27. e5 {[%clk 0:01:36.5]} 27... Rxe5 {[%clk 0:00:26.3]} 28. Bxe5
{[%clk 0:01:36.3]} 28... Nxe5 {[%clk 0:00:24.4]} 29. Qa4 {[%clk 0:01:35.7]}
29... Qb5 {[%clk 0:00:20.2]} 30. Qa1 {[%clk 0:01:08.8]} 30... c3 {[%clk
0:00:18.4]} 31. Bf1 {[%clk 0:00:58.7]} 31... Qc5 {[%clk 0:00:18.8]} 32. Qxa6
{[%clk 0:00:55.3]} 32... Rd8 {[%clk 0:00:18.9]} 33. Qb5 {[%clk 0:00:46.2]} 33...
Qxb5 {[%clk 0:00:18.5]} 34. Bxb5 {[%clk 0:00:47.1]} 34... Nf3+ {[%clk
0:00:10.6]} 35. Kg2 {[%clk 0:00:45.2]} 35... Nd2 {[%clk 0:00:11.5]} 36. Ra1
{[%clk 0:00:33.7]} 36... b3 {[%clk 0:00:09.3]} 37. Rac1 {[%clk 0:00:33.9]} 37...
Nd5 {[%clk 0:00:06.2]} 38. Bc6 {[%clk 0:00:33.4]} 38... b2 {[%clk 0:00:02]} 39.
Bxd5 {[%clk 0:00:33.7]} 39... bxc1=Q {[%clk 0:00:01.8]} 40. Rxc1 {[%clk
0:00:34.6]} 40... Rxd6 {[%clk 0:00:02.1]} 41. Rxc3 {[%clk 0:00:35]} 41... g6
{[%clk 0:00:02.6]} 42. Rd3 {[%clk 0:00:33.1]} 42... Kg7 {[%clk 0:00:01.7]} 43.
Rxd2 {[%clk 0:00:33.2]} 1-0

[Event "Late-Titled-Tuesday-Blitz-April-23-2024"]
[Site "Chess.com"]
[Date "2024.04.23"]
[Round "11"]
[White "malakismayil"]
[Black "Zampronha1971"]
[Result "1/2-1/2"]
[WhiteElo "2571"]
[BlackElo "2467"]
[TimeControl "180+1"]
[EndTime "16:07:39 PDT"]
[Termination "Game drawn by repetition"]

1. e4 {[%clk 0:03:00.9]} 1... c5 {[%clk 0:02:59.6]} 2. Nf3 {[%clk 0:03:00.5]}
2... e6 {[%clk 0:03:00.2]} 3. c3 {[%clk 0:03:00.1]} 3... Nf6 {[%clk 0:02:59.6]}
4. e5 {[%clk 0:03:00.1]} 4... Nd5 {[%clk 0:03:00.3]} 5. g3 {[%clk 0:03:00.9]}
5... d6 {[%clk 0:02:59.8]} 6. exd6 {[%clk 0:03:01.8]} 6... Bxd6 {[%clk 0:02:59]}
7. Bg2 {[%clk 0:03:02.5]} 7... Nc6 {[%clk 0:02:59.1]} 8. O-O {[%clk 0:03:03.3]}
8... O-O {[%clk 0:02:58.4]} 9. d4 {[%clk 0:03:04.2]} 9... cxd4 {[%clk
0:02:56.8]} 10. cxd4 {[%clk 0:03:05.1]} 10... Be7 {[%clk 0:02:55.9]} 11. Nc3
{[%clk 0:03:05.5]} 11... Bf6 {[%clk 0:02:55.2]} 12. Ne4 {[%clk 0:03:03.4]} 12...
b6 {[%clk 0:02:43.1]} 13. Be3 {[%clk 0:03:01.4]} 13... Bb7 {[%clk 0:02:41.2]}
14. Rc1 {[%clk 0:03:01.1]} 14... Rc8 {[%clk 0:02:40.5]} 15. a3 {[%clk
0:02:48.6]} 15... Qe7 {[%clk 0:02:27.8]} 16. Qd2 {[%clk 0:02:43.9]} 16... Rfd8
{[%clk 0:02:25.1]} 17. Rfd1 {[%clk 0:02:43.5]} 17... Qd7 {[%clk 0:02:16.3]} 18.
Nxf6+ {[%clk 0:02:40.3]} 18... Nxf6 {[%clk 0:02:17.2]} 19. Bg5 {[%clk 0:02:36]}
19... Qe7 {[%clk 0:02:11.1]} 20. Qe3 {[%clk 0:02:21]} 20... h6 {[%clk
0:02:08.7]} 21. Bh4 {[%clk 0:02:17.3]} 21... Na5 {[%clk 0:02:00.7]} 22. Ne5
{[%clk 0:01:52.1]} 22... Bxg2 {[%clk 0:01:58.6]} 23. Kxg2 {[%clk 0:01:53]} 23...
g5 {[%clk 0:01:56]} 24. Bxg5 {[%clk 0:01:52.6]} 24... hxg5 {[%clk 0:01:56.9]}
25. Qxg5+ {[%clk 0:01:53]} 25... Kf8 {[%clk 0:01:57.4]} 26. Qh6+ {[%clk
0:01:52.5]} 26... Kg8 {[%clk 0:01:51.6]} 27. Qg5+ {[%clk 0:01:48.3]} 27... Kf8
{[%clk 0:01:51.5]} 28. b4 {[%clk 0:00:50]} 28... Nb3 {[%clk 0:01:43.8]} 29. Nc6
{[%clk 0:00:41]} 29... Rxc6 {[%clk 0:01:42]} 30. Rxc6 {[%clk 0:00:39.1]} 30...
Nxd4 {[%clk 0:01:37.2]} 31. Rc3 {[%clk 0:00:33.4]} 31... Nf5 {[%clk 0:01:14]}
32. Rxd8+ {[%clk 0:00:25.8]} 32... Qxd8 {[%clk 0:01:14.9]} 33. Qc1 {[%clk
0:00:19.9]} 33... Qa8+ {[%clk 0:01:11.3]} 34. f3 {[%clk 0:00:19.3]} 34... Qd5
{[%clk 0:01:04.9]} 35. Rc8+ {[%clk 0:00:17.2]} 35... Ke7 {[%clk 0:01:02.9]} 36.
Qc7+ {[%clk 0:00:08.9]} 36... Nd7 {[%clk 0:01:00.6]} 37. Qc1 {[%clk 0:00:04.3]}
37... Nd4 {[%clk 0:00:51.3]} 38. Rc4 {[%clk 0:00:01.5]} 38... Qxf3+ {[%clk
0:00:49]} 39. Kh3 {[%clk 0:00:01.1]} 39... Qh5+ {[%clk 0:00:31.2]} 40. Kg2
{[%clk 0:00:01.3]} 40... Qf3+ {[%clk 0:00:31.7]} 41. Kh3 {[%clk 0:00:01.6]}
41... Qh5+ {[%clk 0:00:28.7]} 42. Kg2 {[%clk 0:00:01.8]} 42... Qf3+ {[%clk
0:00:29.3]} 1/2-1/2

[Event "Late-Titled-Tuesday-Blitz-April-23-2024"]
[Site "Chess.com"]
[Date "2024.04.23"]
[Round "11"]
[White "Vladimir_2020"]
[Black "reevecanada"]
[Result "0-1"]
[WhiteElo "2747"]
[BlackElo "2630"]
[TimeControl "180+1"]
[EndTime "16:07:42 PDT"]
[Termination "reevecanada won by resignation"]

1. e4 {[%clk 0:03:00.9]} 1... c5 {[%clk 0:02:54.3]} 2. Nf3 {[%clk 0:03:00.4]}
2... d6 {[%clk 0:02:54.2]} 3. d4 {[%clk 0:02:59.8]} 3... cxd4 {[%clk 0:02:55.1]}
4. Qxd4 {[%clk 0:02:59.6]} 4... Nc6 {[%clk 0:02:54.4]} 5. Bb5 {[%clk 0:02:58.9]}
5... Bd7 {[%clk 0:02:54.7]} 6. Qd3 {[%clk 0:02:59.1]} 6... Nf6 {[%clk
0:02:54.4]} 7. O-O {[%clk 0:02:58.3]} 7... a6 {[%clk 0:02:54.7]} 8. Bxc6 {[%clk
0:02:53.6]} 8... Bxc6 {[%clk 0:02:52.8]} 9. Re1 {[%clk 0:02:52.8]} 9... g6
{[%clk 0:02:49.7]} 10. c4 {[%clk 0:02:52.4]} 10... Bg7 {[%clk 0:02:46.1]} 11.
Nc3 {[%clk 0:02:52.5]} 11... O-O {[%clk 0:02:44.9]} 12. Be3 {[%clk 0:02:46.8]}
12... Nd7 {[%clk 0:02:39.8]} 13. Nd4 {[%clk 0:02:44.7]} 13... Rc8 {[%clk
0:02:29]} 14. Rac1 {[%clk 0:02:41.9]} 14... Ne5 {[%clk 0:02:26.9]} 15. Qe2
{[%clk 0:02:40.7]} 15... Bd7 {[%clk 0:02:24.2]} 16. b3 {[%clk 0:02:37.8]} 16...
Qa5 {[%clk 0:02:23.3]} 17. h3 {[%clk 0:02:25.5]} 17... e6 {[%clk 0:02:20.8]} 18.
Qd2 {[%clk 0:02:19]} 18... Qc7 {[%clk 0:02:15.1]} 19. a4 {[%clk 0:02:09.6]}
19... Rfd8 {[%clk 0:02:10.6]} 20. Red1 {[%clk 0:02:00.4]} 20... Bc6 {[%clk
0:02:04.8]} 21. f3 {[%clk 0:01:56.5]} 21... Be8 {[%clk 0:01:56.5]} 22. Qf2
{[%clk 0:01:54.8]} 22... Rd7 {[%clk 0:01:52.3]} 23. f4 {[%clk 0:01:46.8]} 23...
Nc6 {[%clk 0:01:51.9]} 24. f5 {[%clk 0:01:47.1]} 24... Nxd4 {[%clk 0:01:35.3]}
25. Bxd4 {[%clk 0:01:46.8]} 25... Bxd4 {[%clk 0:01:35]} 26. Rxd4 {[%clk
0:01:43.1]} 26... Qc5 {[%clk 0:01:33.4]} 27. Rcd1 {[%clk 0:01:31.4]} 27... Rdd8
{[%clk 0:01:20.4]} 28. R4d3 {[%clk 0:01:05.5]} 28... Qe5 {[%clk 0:01:15.6]} 29.
Qd4 {[%clk 0:01:05.1]} 29... Qf4 {[%clk 0:01:02.9]} 30. Rf3 {[%clk 0:01:01.8]}
30... Qg5 {[%clk 0:00:59.5]} 31. Rdf1 {[%clk 0:01:00]} 31... Bc6 {[%clk
0:00:39.9]} 32. Qd3 {[%clk 0:00:56.3]} 32... exf5 {[%clk 0:00:37.4]} 33. Rg3
{[%clk 0:00:52]} 33... fxe4 {[%clk 0:00:36.2]} 34. Rxg5 {[%clk 0:00:46.5]} 34...
exd3 {[%clk 0:00:35.7]} 35. Rg3 {[%clk 0:00:46.7]} 35... d5 {[%clk 0:00:33.1]}
36. c5 {[%clk 0:00:35.9]} 36... d4 {[%clk 0:00:30.3]} 37. Nb1 {[%clk 0:00:36.1]}
37... Be4 {[%clk 0:00:24.5]} 38. Nd2 {[%clk 0:00:34.6]} 38... f5 {[%clk
0:00:22.7]} 39. Rc1 {[%clk 0:00:32.3]} 39... Rd5 {[%clk 0:00:17]} 40. b4 {[%clk
0:00:27.7]} 40... a5 {[%clk 0:00:16.7]} 41. Rc4 {[%clk 0:00:25.3]} 41... axb4
{[%clk 0:00:15.6]} 42. Rxb4 {[%clk 0:00:25.5]} 42... Rcxc5 {[%clk 0:00:15.9]}
43. Rxb7 {[%clk 0:00:24.3]} 43... Rc2 {[%clk 0:00:16.2]} 0-1